fUST/lending_fUST_20250811
["ID","MTS","AMOUNT","RATE_DAILY","PERIOD"]
[378464134,1754875851068,-460.0,0.00020361,2]
[378464135,1754875851077,-460.0,0.00020361,2]
[378464136,1754875851086,-460.0,0.00020361,2]
[378464137,1754875851095,-1000.0,0.00020361,2]
[378464138,1754875851104,-460.0,0.00020361,2]
[378464139,1754875851114,-387.76247186,0.00020361,2]
[378464140,1754875851123,-460.0,0.00020361,2]
[378464141,1754875851133,-460.0,0.00020361,2]
[378464142,1754875851142,-1411.99,0.00020361,2]
[378464143,1754875851152,-460.0,0.00020361,2]
[378464144,1754875851161,-462.0314437,0.00020361,2]
[378464145,1754875851170,-460.0,0.00020361,2]
[378464146,1754875851180,-460.0,0.00020361,2]
[378464147,1754875851189,-460.0,0.00020361,2]
[378464148,1754875851198,-460.0,0.00020361,2]
[378464149,1754875851207,-460.0,0.00020361,2]
[378464150,1754875851217,-460.0,0.00020361,2]
[378464151,1754875851226,-460.0,0.00020361,2]
[378464152,1754875851235,-460.0,0.00020361,2]
[378464153,1754875851245,-460.0,0.00020361,2]
[378464154,1754875851254,-460.0,0.00020361,2]
[378464155,1754875851263,-460.0,0.00020361,2]
[378464156,1754875851272,-460.0,0.00020361,2]
[378464157,1754875851281,-460.0,0.00020361,2]
[378464158,1754875851291,-460.0,0.00020361,2]
[378464159,1754875851300,-460.0,0.00020361,2]
[378464160,1754875851310,-460.0,0.00020361,2]
[378464161,1754875851319,-460.0,0.00020361,2]
[378464162,1754875851328,-460.0,0.00020361,2]
[378464163,1754875851337,-460.0,0.00020361,2]
[378464164,1754875851346,-376.89065439,0.00020361,2]
[378464165,1754875851356,-460.0,0.00020361,2]
[378464166,1754875851369,-462.47809755,0.00020361,2]
[378464167,1754875851380,-460.0,0.00020361,2]
[378464168,1754875851389,-460.0,0.00020361,2]
[378464169,1754875851398,-460.0,0.00020361,2]
[378464170,1754875851408,-460.0,0.00020361,2]
[378464171,1754875851417,-992.71,0.00020361,2]
[378464172,1754875851427,-460.0,0.00020361,2]
[378464173,1754875851437,-232.88443629,0.00020361,2]
[378464174,1754875851448,-460.0,0.00020361,2]
[378464175,1754875851458,-460.0,0.00020361,2]
[378464176,1754875851467,-460.0,0.00020361,2]
[378464177,1754875851477,-460.0,0.00020361,2]
[378464178,1754875851486,-460.0,0.00020361,2]
[378464179,1754875851496,-460.0,0.00020361,2]
[378464180,1754875851505,-460.0,0.00020361,2]
[378464181,1754875851515,-460.0,0.00020361,2]
[378464182,1754875851524,-460.0,0.00020362,2]
[378464183,1754875851534,-460.0,0.00020362,2]
[378464184,1754875851543,-460.0,0.00020362,2]
[378464185,1754875851553,-460.0,0.00020362,2]
[378464186,1754875851563,-460.0,0.00020362,2]
[378464187,1754875851572,-460.0,0.00020362,2]
[378464188,1754875851582,-460.0,0.00020362,2]
[378464189,1754875851591,-460.0,0.00020363,2]
[378464190,1754875851600,-460.0,0.00020363,2]
[378464191,1754875851610,-500.0,0.00020373,2]
[378464192,1754875851619,-150.63547756,0.00020373,2]
[378464193,1754875851628,-500.0,0.00020373,2]
[378464194,1754875851638,-500.0,0.00020373,2]
[378464195,1754875851647,-500.0,0.00020373,2]
[378464196,1754875851656,-400.0,0.00020373,2]
[378464197,1754875851665,-500.0,0.00020373,2]
[378464198,1754875851674,-500.0,0.00020373,2]
[378464199,1754875851683,-500.0,0.00020373,2]
[378464200,1754875851692,-500.0,0.00020373,2]
[378464201,1754875851702,-500.0,0.00020373,2]
[378464202,1754875851711,-500.0,0.00020373,2]
[378464203,1754875851720,-500.0,0.00020373,2]
[378464204,1754875851730,-500.0,0.00020373,2]
[378464205,1754875851739,-500.0,0.00020373,2]
[378464206,1754875851748,-500.0,0.00020373,2]
[378464207,1754875851758,-500.0,0.00020373,2]
[378464209,1754875851767,-500.0,0.00020373,2]
[378464211,1754875851776,-500.0,0.00020373,2]
[378464212,1754875851785,-500.0,0.00020373,2]
[378464213,1754875851794,-500.0,0.00020373,2]
[378464214,1754875851803,-501.51860225,0.00020373,2]
[378464215,1754875851813,-303.38675974,0.00020373,2]
[378464216,1754875851822,-500.0,0.00020373,2]
[378464217,1754875851832,-501.51738193,0.00020373,2]
[378464218,1754875851841,-500.0,0.00020373,2]
[378464219,1754875851850,-160.0,0.00020373,2]
[378464220,1754875851859,-500.0,0.00020373,2]
[378464221,1754875851868,-500.93589794,0.00020373,2]
[378464222,1754875851878,-167.47739129,0.00020373,2]
[378464223,1754875851888,-500.62817208,0.00020373,2]
[378464224,1754875851897,-262.4870968,0.00020373,2]
[378464225,1754875851907,-258.79722365,0.00020373,2]
[378464226,1754875851916,-501.15663352,0.00020373,2]
[378464227,1754875851925,-500.81393191,0.00020373,2]
[378464228,1754875851934,-500.0,0.00020373,2]
[378464229,1754875851944,-500.0,0.00020373,2]
[378464230,1754875851953,-500.26973624,0.00020373,2]
[378464231,1754875851963,-198.31463455,0.00020373,2]
[378464232,1754875852047,-500.0,0.00020373,2]
[378464233,1754875852057,-501.59623626,0.00020373,2]
[378464234,1754875852067,-500.0,0.00020373,2]
[378464235,1754875852076,-500.44189781,0.00020373,2]
[378464236,1754875852086,-500.28672617,0.00020373,2]
[378464237,1754875852097,-500.0,0.00020373,2]
[378464238,1754875852107,-500.24735261,0.00020373,2]
[378464239,1754875852116,-500.23748346,0.00020373,2]
[378464240,1754875852126,-500.63901661,0.00020373,2]
[378464241,1754875852137,-500.1581979,0.00020373,2]
[378464242,1754875852147,-500.0,0.00020373,2]
[378464243,1754875852156,-503.15587219,0.00020373,2]
[378464244,1754875852166,-500.38511796,0.00020373,2]
[378464245,1754875852175,-516.5355599,0.00020373,2]
[378464246,1754875852185,-467.54334823,0.00020373,2]
[378464247,1754875852194,-460.0,0.00020373,2]
[378464248,1754875852203,-460.0,0.00020373,2]
[378464249,1754875852212,-460.0,0.00020373,2]
[378464250,1754875852222,-460.0,0.00020373,2]
[378464251,1754875852231,-460.0,0.00020373,2]
[378464252,1754875852240,-465.05589894,0.00020373,2]
[378464253,1754875852249,-460.0,0.00020373,2]
[378464254,1754875852259,-460.0,0.00020373,2]
[378464255,1754875852268,-460.0,0.00020373,2]
[378464256,1754875852277,-460.0,0.00020373,2]
[378464257,1754875852286,-460.0,0.00020373,2]
[378464258,1754875852296,-460.0,0.00020373,2]
[378464259,1754875852305,-460.0,0.00020373,2]
[378464260,1754875852315,-460.0,0.00020373,2]
[378464261,1754875852324,-463.29,0.00020373,2]
[378464262,1754875852333,-460.0,0.00020373,2]
[378464263,1754875852342,-460.0,0.00020373,2]
[378464264,1754875852352,-460.0,0.00020373,2]
[378464265,1754875852361,-653.95,0.00020373,2]
[378464266,1754875852373,-462.30028181,0.00020373,2]
[378464267,1754875852383,-460.0,0.00020373,2]
[378464268,1754875852393,-460.0,0.00020373,2]
[378464269,1754875852402,-460.0,0.00020373,2]
[378464270,1754875852412,-460.0,0.00020373,2]
[378464271,1754875852421,-460.0,0.00020373,2]
[378464272,1754875852431,-460.0,0.00020373,2]
[378464273,1754875852440,-461.09977601,0.00020373,2]
[378464274,1754875852451,-460.0,0.00020373,2]
[378464275,1754875852460,-469.68660814,0.00020373,2]
[378464276,1754875852469,-460.0,0.00020373,2]
[378464277,1754875852479,-460.0,0.00020373,2]
[378464278,1754875852488,-460.0,0.00020373,2]
[378464279,1754875852497,-326.97086935,0.00020373,2]
[378464280,1754875852507,-468.34509851,0.00020373,2]
[378464281,1754875852516,-460.0,0.00020373,2]
[378464282,1754875852525,-460.0,0.00020373,2]
[378464283,1754875852534,-460.0,0.00020373,2]
[378464284,1754875852543,-460.0,0.00020373,2]
[378464285,1754875852553,-460.0,0.00020373,2]
[378464286,1754875852563,-460.0,0.00020373,2]
[378464287,1754875852572,-460.0,0.00020373,2]
[378464288,1754875852582,-460.0,0.00020374,2]
[378464289,1754875852591,-460.0,0.00020374,2]
[378464290,1754875852601,-460.0,0.00020374,2]
[378464291,1754875852610,-460.0,0.00020374,2]
[378464292,1754875852620,-151.0,0.00020375,2]
[378464293,1754875852630,-151.0,0.00020375,2]
[378464294,1754875852639,-460.0,0.00020376,2]
[378464295,1754875852649,-460.0,0.00020376,2]
[378464296,1754875852658,-460.0,0.00020376,2]
[378464297,1754875852667,-460.0,0.00020376,2]
[378464298,1754875852677,-460.0,0.00020376,2]
[378464299,1754875852689,-460.0,0.00020376,2]
[378464300,1754875852699,-460.0,0.00020376,2]
[378464301,1754875852708,-500.0,0.00020376,2]
[378464302,1754875852717,-460.0,0.00020376,2]
[378464303,1754875852726,-460.0,0.00020376,2]
[378464304,1754875852736,-460.0,0.00020376,2]
[378464305,1754875852745,-460.0,0.00020376,2]
[378464306,1754875852754,-460.0,0.00020376,2]
[378464307,1754875852763,-460.0,0.00020376,2]
[378464308,1754875852772,-460.47710125,0.00020376,2]
[378464309,1754875852781,-460.0,0.00020376,2]
[378464310,1754875852790,-460.0,0.00020376,2]
[378464311,1754875852800,-460.0,0.00020376,2]
[378464312,1754875852809,-461.17952208,0.00020376,2]
[378464313,1754875852818,-460.0,0.00020376,2]
[378464314,1754875852827,-460.0,0.00020376,2]
[378464315,1754875852837,-460.0,0.00020376,2]
[378464316,1754875852846,-460.0,0.00020376,2]
[378464317,1754875852855,-460.0,0.00020376,2]
[378464318,1754875852865,-460.0,0.00020376,2]
[378464319,1754875852874,-460.0,0.00020376,2]
[378464320,1754875852888,-460.0,0.00020376,2]
[378464321,1754875852897,-460.0,0.00020376,2]
[378464322,1754875852907,-460.0,0.00020376,2]
[378464323,1754875852917,-460.0,0.00020376,2]
[378464324,1754875852926,-460.0,0.00020376,2]
[378464325,1754875852935,-460.0,0.00020376,2]
[378464326,1754875852945,-460.0,0.00020376,2]
[378464327,1754875852954,-460.0,0.00020376,2]
[378464328,1754875852964,-460.0,0.00020376,2]
[378464329,1754875852973,-332.9916298,0.00020376,2]
[378464330,1754875852982,-467.83,0.00020376,2]
[378464331,1754875852991,-196.495851,0.00020376,2]
[378464332,1754875853000,-196.495851,0.00020376,2]
[378464333,1754875853009,-460.0,0.00020376,2]
[378464334,1754875853018,-460.0,0.00020376,2]
[378464335,1754875853027,-460.0,0.00020376,2]
[378464336,1754875853037,-460.0,0.00020376,2]
[378464337,1754875853046,-513.59737337,0.00020376,2]
[378464338,1754875853055,-460.0,0.00020376,2]
[378464339,1754875853064,-460.0,0.00020376,2]
[378464340,1754875853073,-460.0,0.00020376,2]
[378464341,1754875853082,-460.0,0.00020376,2]
[378464342,1754875853091,-460.0,0.00020376,2]
[378464343,1754875853100,-460.0,0.00020376,2]
[378464344,1754875853109,-460.0,0.00020376,2]
[378464345,1754875853118,-460.0,0.00020376,2]
[378464346,1754875853127,-460.0,0.00020376,2]
[378464347,1754875853137,-460.0,0.00020376,2]
[378464348,1754875853147,-460.0,0.00020376,2]
[378464349,1754875853156,-460.0,0.00020376,2]
[378464350,1754875853165,-463.66795555,0.00020376,2]
[378464351,1754875853175,-460.0,0.00020377,2]
[378464352,1754875853183,-460.0,0.00020377,2]
[378464353,1754875853193,-460.0,0.00020377,2]
[378464354,1754875853202,-319.07915787,0.00020377,2]
[378464355,1754875853212,-460.0,0.00020377,2]
[378464356,1754875853221,-461.43536599,0.00020377,2]
[378464357,1754875853231,-466.73211126,0.00020377,2]
[378464358,1754875853240,-460.0,0.00020377,2]
[378464359,1754875853249,-460.61045143,0.00020377,2]
[378464360,1754875853258,-460.0,0.00020377,2]
[378464361,1754875853268,-460.0,0.00020377,2]
[378464362,1754875853277,-460.0,0.00020377,2]
[378464363,1754875853286,-460.0,0.00020377,2]
[378464364,1754875853295,-460.0,0.00020377,2]
[378464365,1754875853305,-460.0,0.00020377,2]
[378464366,1754875853314,-398.54796075,0.00020377,2]
[378464367,1754875853323,-460.0,0.00020377,2]
[378464368,1754875853334,-460.0,0.00020377,2]
[378464369,1754875853343,-460.0,0.00020377,2]
[378464370,1754875853355,-460.0,0.00020377,2]
[378464371,1754875853364,-460.0,0.00020377,2]
[378464372,1754875853377,-460.0,0.00020377,2]
[378464373,1754875853388,-164.67848633,0.00020377,2]
[378464374,1754875853397,-460.0,0.00020377,2]
[378464375,1754875853476,-460.0,0.00020377,2]
[378464376,1754875853486,-460.0,0.00020377,2]
[378464377,1754875853497,-460.0,0.00020377,2]
[378464378,1754875853509,-460.0,0.00020377,2]
[378464379,1754875853519,-460.0,0.00020377,2]
[378464380,1754875853529,-475.06368576,0.00020377,2]
[378464381,1754875853539,-466.79815138,0.00020377,2]
[378464382,1754875853548,-462.77576942,0.00020377,2]
[378464383,1754875853557,-460.0,0.00020377,2]
[378464384,1754875853567,-460.0,0.00020377,2]
[378464385,1754875853576,-460.0,0.00020377,2]
[378464386,1754875853585,-460.0,0.00020377,2]
[378464387,1754875853594,-460.0,0.00020377,2]
[378464388,1754875853604,-473.50958267,0.00020377,2]
[378464389,1754875853614,-460.0,0.00020377,2]
[378464390,1754875853623,-461.05755862,0.00020377,2]
[378464391,1754875853634,-185.56136873,0.00020377,2]
[378464392,1754875853643,-460.0,0.00020377,2]
[378464393,1754875853652,-460.0,0.00020377,2]
[378464394,1754875853662,-460.0,0.00020377,2]
[378464395,1754875853671,-460.0,0.00020377,2]
[378464396,1754875853680,-460.0,0.00020377,2]
[378464397,1754875853690,-3528.01,0.00020377,2]
[378464398,1754875853699,-460.0,0.00020377,2]
[378464399,1754875853708,-776.68,0.00020377,2]
[378464400,1754875853717,-500.0,0.0002038,2]
[378464401,1754875853727,-986.46,0.0002038,2]
[378464402,1754875853737,-460.0,0.00020381,2]
[378464403,1754875853746,-460.0,0.00020381,2]
[378464404,1754875853760,-460.0,0.00020381,2]
[378464405,1754875853769,-1024.3,0.00020381,2]
[378464406,1754875853778,-460.0,0.00020381,2]
[378464407,1754875853788,-460.0,0.00020381,2]
[378464408,1754875853797,-460.0,0.00020381,2]
[378464409,1754875853807,-1355.29,0.00020381,2]
[378464410,1754875853817,-460.0,0.00020381,2]
[378464411,1754875853826,-500.0,0.0002039,2]
[378464412,1754875853836,-986.46,0.0002039,2]
[378464413,1754875853845,-1443.99,0.00020391,2]
[378464414,1754875853854,-460.0,0.00020391,2]
[378464415,1754875853864,-460.0,0.00020391,2]
[378464416,1754875853873,-460.0,0.00020391,2]
[378464417,1754875853882,-943.31,0.00020391,2]
[378464418,1754875853892,-756.53,0.00020391,2]
[378464419,1754875853902,-500.0,0.00020395,2]
[378464420,1754875853912,-986.46,0.00020395,2]
[378464421,1754875853922,-174.12,0.00020486,2]
[378464422,1754875853932,-151.0,0.00020555,2]
[378464423,1754875853942,-151.0,0.00020555,2]
[378464424,1754875853951,-460.0,0.00020622,2]
[378464425,1754875853960,-460.0,0.00020622,2]
[378464426,1754875853969,-460.0,0.00020622,2]
[378464427,1754875853979,-460.0,0.00020622,2]
[378464428,1754875853988,-460.0,0.00020622,2]
[378464429,1754875853998,-500.0,0.00020623,2]
[378464430,1754875854008,-483.34080847,0.00020625,2]
[378464431,1754875854018,-217.44940355,0.00020626,2]
[378464432,1754875854028,-460.0,0.0002063,2]
[378464433,1754875854038,-460.0,0.0002063,2]
[378464434,1754875854049,-1509.74,0.0002063,2]
[378464435,1754875854059,-460.0,0.0002063,2]
[378464436,1754875854068,-1576.73,0.0002063,2]
[378464437,1754875854078,-2489.12,0.0002063,2]
[378464438,1754875854090,-460.0,0.0002063,2]
[378464439,1754875854101,-460.0,0.0002063,2]
[378464440,1754875854111,-460.0,0.0002063,2]
[378464441,1754875854122,-460.0,0.0002063,2]
[378464442,1754875854132,-476.00354537,0.0002063,2]
[378464443,1754875854141,-460.0,0.00020632,2]
[378464444,1754875854151,-460.0,0.00020632,2]
[378464445,1754875854160,-460.0,0.00020632,2]
[378464446,1754875854169,-460.0,0.00020632,2]
[378464447,1754875854179,-307.64298025,0.00020632,2]
[378464448,1754875854188,-460.0,0.00020632,2]
[378464449,1754875854199,-460.0,0.00020632,2]
[378464450,1754875854210,-460.0,0.00020632,2]
[378464451,1754875854221,-460.0,0.00020632,2]
[378464452,1754875854230,-460.0,0.00020632,2]
[378464453,1754875854241,-514.29,0.00020632,2]
[378464454,1754875854250,-249.21,0.00020632,2]
[378464455,1754875854262,-460.0,0.00020632,2]
[378464456,1754875854272,-460.0,0.00020632,2]
[378464457,1754875854283,-460.0,0.00020632,2]
[378464458,1754875854293,-460.0,0.00020632,2]
[378464459,1754875854303,-460.0,0.00020632,2]
[378464460,1754875854313,-460.0,0.00020632,2]
[378464461,1754875854323,-460.0,0.00020632,2]
[378464462,1754875854332,-460.0,0.00020632,2]
[378464463,1754875854341,-460.0,0.00020632,2]
[378464464,1754875854350,-460.0,0.00020632,2]
[378464465,1754875854360,-460.0,0.00020632,2]
[378464466,1754875854373,-460.0,0.00020632,2]
[378464467,1754875854382,-460.0,0.00020632,2]
[378464468,1754875854391,-460.0,0.00020632,2]
[378464469,1754875854400,-460.0,0.00020632,2]
[378464470,1754875854410,-460.0,0.00020632,2]
[378464471,1754875854420,-460.0,0.00020632,2]
[378464472,1754875854429,-464.91002562,0.00020632,2]
[378464473,1754875854438,-460.0,0.00020632,2]
[378464474,1754875854450,-460.0,0.00020632,2]
[378464475,1754875854459,-460.0,0.00020632,2]
[378464476,1754875854468,-460.0,0.00020632,2]
[378464477,1754875854477,-463.27187243,0.00020632,2]
[378464478,1754875854486,-460.0,0.00020632,2]
[378464479,1754875854495,-460.0,0.00020632,2]
[378464480,1754875854505,-460.0,0.00020632,2]
[378464481,1754875854514,-460.0,0.00020632,2]
[378464482,1754875854523,-460.0,0.00020632,2]
[378464483,1754875854533,-464.78982723,0.00020632,2]
[378464484,1754875854542,-382.36690778,0.00020632,2]
[378464485,1754875854552,-460.0,0.00020633,2]
[378464486,1754875854561,-1431.78,0.00020633,2]
[378464487,1754875854571,-462.86757288,0.00020633,2]
[378464488,1754875854580,-460.0,0.00020633,2]
[378464489,1754875854589,-1154.77,0.00020633,2]
[378464490,1754875854598,-460.0,0.00020635,2]
[378464491,1754875854608,-231.92707669,0.00020635,2]
[378464492,1754875854617,-460.0,0.00020635,2]
[378464493,1754875854627,-460.0,0.00020635,2]
[378464494,1754875854637,-460.0,0.00020635,2]
[378464495,1754875854646,-460.0,0.00020635,2]
[378464496,1754875854656,-460.0,0.00020635,2]
[378464497,1754875854665,-460.0,0.00020635,2]
[378464498,1754875854675,-464.86608539,0.00020635,2]
[378464499,1754875854684,-460.0,0.00020635,2]
[378464500,1754875854693,-466.7773891,0.00020635,2]
[378464501,1754875854703,-460.0,0.00020635,2]
[378464502,1754875854712,-460.0,0.00020635,2]
[378464503,1754875854721,-464.77455933,0.00020635,2]
[378464504,1754875854731,-460.0,0.00020635,2]
[378464505,1754875854740,-460.0,0.00020635,2]
[378464506,1754875854749,-460.0,0.00020635,2]
[378464507,1754875854758,-460.0,0.00020635,2]
[378464508,1754875854839,-460.0,0.00020635,2]
[378464509,1754875854849,-460.0,0.00020635,2]
[378464510,1754875854858,-460.0,0.00020635,2]
[378464511,1754875854868,-460.0,0.00020635,2]
[378464512,1754875854877,-462.06849886,0.00020635,2]
[378464513,1754875854886,-460.0,0.00020635,2]
[378464514,1754875854895,-460.0,0.00020635,2]
[378464515,1754875854905,-460.0,0.00020635,2]
[378464516,1754875854914,-463.8665815,0.00020635,2]
[378464517,1754875854923,-462.14163462,0.00020635,2]
[378464518,1754875854933,-460.0,0.00020635,2]
[378464519,1754875854943,-460.0,0.00020635,2]
[378464520,1754875854954,-460.0,0.00020635,2]
[378464521,1754875854963,-460.0,0.00020635,2]
[378464522,1754875854972,-471.49829482,0.00020635,2]
[378464523,1754875854981,-460.0,0.00020635,2]
[378464524,1754875854991,-463.69141058,0.00020635,2]
[378464525,1754875855000,-460.0,0.00020635,2]
[378464526,1754875855009,-460.0,0.00020635,2]
[378464527,1754875855018,-460.0,0.00020635,2]
[378464528,1754875855027,-463.43373622,0.00020635,2]
[378464529,1754875855037,-461.68248635,0.00020635,2]
[378464530,1754875855046,-460.0,0.00020635,2]
[378464531,1754875855056,-463.29666506,0.00020635,2]
[378464532,1754875855065,-460.0,0.00020635,2]
[378464533,1754875855074,-460.0,0.00020635,2]
[378464534,1754875855083,-460.0,0.00020635,2]
[378464535,1754875855093,-460.0,0.00020635,2]
[378464536,1754875855102,-460.0,0.00020635,2]
[378464537,1754875855111,-460.0,0.00020635,2]
[378464538,1754875855121,-460.0,0.00020635,2]
[378464539,1754875855131,-545.53,0.00020635,2]
[378464540,1754875855141,-460.0,0.00020635,2]
[378464541,1754875855150,-460.0,0.00020635,2]
[378464542,1754875855160,-460.0,0.00020635,2]
[378464543,1754875855169,-460.0,0.00020635,2]
[378464544,1754875855178,-460.0,0.00020635,2]
[378464545,1754875855187,-460.0,0.00020635,2]
[378464546,1754875855196,-460.0,0.00020635,2]
[378464547,1754875855206,-460.0,0.00020635,2]
[378464548,1754875855215,-462.42935251,0.00020635,2]
[378464549,1754875855224,-460.0,0.00020635,2]
[378464550,1754875855233,-469.98664891,0.00020635,2]
[378464551,1754875855242,-467.67303426,0.00020635,2]
[378464552,1754875855251,-460.0,0.00020635,2]
[378464553,1754875855260,-604.43240967,0.00020635,2]
[378464554,1754875855269,-460.0,0.00020635,2]
[378464555,1754875855278,-460.0,0.00020635,2]
[378464556,1754875855287,-378.68824955,0.00020635,2]
[378464557,1754875855297,-296.99206066,0.00020635,2]
[378464558,1754875855306,-461.44731364,0.00020635,2]
[378464559,1754875855315,-1411.99,0.00020635,2]
[378464560,1754875855324,-463.35638808,0.00020635,2]
[378464561,1754875855333,-460.0,0.00020635,2]
[378464562,1754875855342,-460.0,0.00020635,2]
[378464563,1754875855351,-460.0,0.00020635,2]
[378464564,1754875855360,-460.0,0.00020635,2]
[378464565,1754875855373,-460.0,0.00020635,2]
[378464566,1754875855382,-264.11257862,0.00020635,2]
[378464567,1754875855391,-460.0,0.00020635,2]
[378464568,1754875855400,-460.0,0.00020635,2]
[378464569,1754875855410,-460.0,0.00020635,2]
[378464570,1754875855420,-460.0,0.00020635,2]
[378464571,1754875855429,-460.0,0.00020635,2]
[378464572,1754875855438,-460.0,0.00020635,2]
[378464573,1754875855450,-460.0,0.00020635,2]
[378464574,1754875855463,-460.0,0.00020635,2]
[378464575,1754875855472,-460.0,0.00020635,2]
[378464576,1754875855481,-460.0,0.00020635,2]
[378464577,1754875855491,-440.85262255,0.00020635,2]
[378464578,1754875855499,-562.89531199,0.00020635,2]
[378464579,1754875855509,-992.71,0.00020635,2]
[378464580,1754875855518,-472.70629189,0.00020635,2]
[378464581,1754875855528,-515.37607058,0.00020635,2]
[378464582,1754875855537,-181.46876945,0.00020635,2]
[378464583,1754875855547,-460.0,0.00020635,2]
[378464584,1754875855556,-460.0,0.00020635,2]
[378464585,1754875855565,-466.0253226,0.00020635,2]
[378464586,1754875855574,-460.0,0.00020635,2]
[378464587,1754875855583,-463.52554596,0.00020636,2]
[378464588,1754875855592,-460.0,0.00020636,2]
[378464589,1754875855602,-462.62629045,0.00020636,2]
[378464590,1754875855611,-460.0,0.00020636,2]
[378464591,1754875855621,-460.0,0.00020636,2]
[378464592,1754875855630,-460.0,0.00020636,2]
[378464593,1754875855640,-460.0,0.00020636,2]
[378464594,1754875855649,-460.0,0.00020637,2]
[378464595,1754875855659,-460.0,0.00020637,2]
[378464596,1754875855668,-460.0,0.00020647,2]
[378464597,1754875855678,-460.0,0.00020647,2]
[378464598,1754875855688,-460.0,0.00020647,2]
[378464599,1754875855696,-460.0,0.00020647,2]
[378464600,1754875855706,-460.0,0.00020647,2]
[378464601,1754875855715,-460.0,0.00020647,2]
[378464602,1754875855725,-460.0,0.00020647,2]
[378464603,1754875855734,-460.0,0.00020647,2]
[378464604,1754875855744,-460.0,0.00020647,2]
[378464605,1754875855753,-463.29,0.00020647,2]
[378464606,1754875855762,-196.495851,0.00020647,2]
[378464607,1754875855772,-460.0,0.00020647,2]
[378464608,1754875855781,-196.495851,0.00020647,2]
[378464609,1754875855791,-460.0,0.00020647,2]
[378464610,1754875855800,-653.95,0.00020647,2]
[378464611,1754875855809,-460.0,0.00020647,2]
[378464612,1754875855819,-460.0,0.00020647,2]
[378464613,1754875855829,-460.0,0.00020647,2]
[378464614,1754875855838,-460.0,0.00020647,2]
[378464615,1754875855848,-460.0,0.00020647,2]
[378464616,1754875855858,-602.33459749,0.00020647,2]
[378464617,1754875855868,-460.0,0.00020647,2]
[378464618,1754875855877,-460.0,0.00020647,2]
[378464619,1754875855887,-460.0,0.00020647,2]
[378464620,1754875855897,-460.0,0.00020647,2]
[378464621,1754875855906,-460.0,0.00020647,2]
[378464622,1754875855916,-467.85916128,0.00020647,2]
[378464623,1754875855925,-460.0,0.00020647,2]
[378464624,1754875855934,-460.0,0.00020647,2]
[378464625,1754875855944,-460.0,0.00020648,2]
[378464626,1754875855954,-460.0,0.00020648,2]
[378464627,1754875855964,-460.0,0.0002065,2]
[378464628,1754875855973,-460.0,0.0002065,2]
[378464629,1754875855982,-460.0,0.0002065,2]
[378464630,1754875855992,-460.0,0.0002065,2]
[378464631,1754875856066,-460.0,0.0002065,2]
[378464632,1754875856075,-301.47104184,0.0002065,2]
[378464633,1754875856084,-460.0,0.0002065,2]
[378464634,1754875856094,-460.0,0.0002065,2]
[378464635,1754875856103,-460.0,0.0002065,2]